fUST/lending_fUST_20241006
["ID","MTS","AMOUNT","RATE_DAILY","PERIOD"]
[339952557,1728204641854,-500.0,0.00013698,2]
[339952558,1728204641866,-500.0,0.00013698,2]
[339952559,1728204641877,-500.0,0.00013698,2]
[339952560,1728204641889,-500.66300144,0.00013698,2]
[339952561,1728204641899,-500.0,0.00013698,2]
[339952562,1728204641909,-818.04,0.00013698,2]
[339952563,1728204641920,-500.0,0.00013698,2]
[339952564,1728204641930,-500.0,0.00013698,2]
[339952565,1728204641940,-500.0,0.00013698,2]
[339952566,1728204641951,-500.0,0.00013698,2]
[339952567,1728204641964,-500.0,0.00013698,2]
[339952568,1728204641974,-500.0,0.00013698,2]
[339952569,1728204641985,-500.0,0.00013698,2]
[339952570,1728204641995,-556.11,0.00013698,2]
[339952571,1728204642006,-500.0,0.00013698,2]
[339952572,1728204642018,-500.0,0.00013698,2]
[339952573,1728204642030,-500.0,0.00013698,2]
[339952574,1728204642040,-500.0,0.00013698,2]
[339952575,1728204642050,-500.0,0.00013698,2]
[339952576,1728204642060,-531.36173632,0.00013698,2]
[339952577,1728204642069,-500.0,0.00013698,2]
[339952578,1728204642081,-560.49,0.00013698,2]
[339952579,1728204642092,-500.0,0.00013698,2]
[339952580,1728204642104,-500.0,0.00013698,2]
[339952581,1728204642116,-683.29,0.00013698,2]
[339952582,1728204642128,-500.0,0.00013698,2]
[339952583,1728204642141,-500.0,0.00013698,2]
[339952584,1728204642153,-637.92,0.00013698,2]
[339952585,1728204642164,-500.0,0.00013698,2]
[339952586,1728204642175,-500.0,0.00013698,2]
[339952587,1728204642184,-500.0,0.00013698,2]
[339952588,1728204642194,-500.0,0.00013698,2]
[339952589,1728204642205,-500.0,0.00013698,2]
[339952590,1728204642216,-500.0,0.00013698,2]
[339952591,1728204642228,-500.0,0.00013698,2]
[339952592,1728204642239,-500.0,0.00013698,2]
[339952593,1728204642251,-500.0,0.00013698,2]
[339952594,1728204642262,-500.0,0.00013698,2]
[339952595,1728204642276,-500.0,0.00013698,2]
[339952596,1728204642288,-355.3098227,0.00013698,2]
[339952597,1728204642304,-500.0,0.00013698,2]
[339952598,1728204642314,-500.0,0.00013698,2]
[339952599,1728204642324,-500.0,0.00013698,2]
[339952600,1728204642333,-616.22,0.00013698,2]
[339952601,1728204642343,-500.0,0.00013698,2]
[339952602,1728204642352,-500.0,0.00013698,2]
[339952603,1728204642362,-500.0,0.00013698,2]
[339952604,1728204642371,-749.19,0.00013698,2]
[339952605,1728204642381,-500.0,0.00013698,2]
[339952606,1728204642390,-500.0,0.00013698,2]
[339952607,1728204642399,-500.0,0.00013698,2]
[339952608,1728204642409,-500.0,0.00013698,2]
[339952609,1728204642419,-500.0,0.00013698,2]
[339952610,1728204642429,-500.0,0.00013698,2]
[339952611,1728204642439,-500.0,0.00013698,2]
[339952612,1728204642449,-500.0,0.00013698,2]
[339952613,1728204642461,-500.0,0.00013698,2]
[339952614,1728204642470,-500.0,0.00013698,2]
[339952615,1728204642480,-500.0,0.00013698,2]
[339952616,1728204642489,-500.0,0.00013698,2]
[339952617,1728204642499,-500.0,0.00013698,2]
[339952618,1728204642509,-500.0,0.00013698,2]
[339952619,1728204642518,-568.88,0.00013698,2]
[339952620,1728204642529,-691.1,0.00013698,2]
[339952621,1728204642538,-500.0,0.00013698,2]
[339952622,1728204642549,-583.91,0.00013698,2]
[339952623,1728204642559,-500.0,0.00013698,2]
[339952624,1728204642568,-500.0,0.00013698,2]
[339952625,1728204642578,-500.0,0.00013698,2]
[339952626,1728204642588,-500.0,0.00013698,2]
[339952627,1728204642597,-500.0,0.00013698,2]
[339952628,1728204642607,-500.0,0.00013698,2]
[339952629,1728204642617,-500.0,0.00013698,2]
[339952630,1728204642627,-783.45,0.00013698,2]
[339952631,1728204642636,-500.0,0.00013698,2]
[339952632,1728204642645,-649.52,0.00013698,2]
[339952633,1728204642655,-702.17,0.00013698,2]
[339952634,1728204642665,-500.0,0.00013698,2]
[339952635,1728204642675,-500.0,0.00013698,2]
[339952636,1728204642684,-500.0,0.00013698,2]
[339952637,1728204642693,-512.05,0.00013698,2]
[339952638,1728204642703,-500.0,0.00013698,2]
[339952639,1728204642712,-538.2,0.00013698,2]
[339952640,1728204642722,-500.0,0.00013698,2]
[339952641,1728204642732,-500.0,0.00013698,2]
[339952642,1728204642741,-500.0,0.00013698,2]
[339952643,1728204642750,-850.21,0.00013698,2]
[339952644,1728204642761,-722.13,0.00013698,2]
[339952645,1728204642770,-500.0,0.00013698,2]
[339952646,1728204642780,-582.57,0.00013698,2]
[339952647,1728204642789,-632.59987989,0.00013698,2]
[339952648,1728204642807,-500.0,0.00013698,2]
[339952649,1728204642816,-500.0,0.00013698,2]
[339952650,1728204642825,-500.0,0.00013698,2]
[339952651,1728204642835,-515.12,0.00013698,2]
[339952652,1728204642845,-500.0,0.00013698,2]
[339952653,1728204642854,-500.0,0.00013698,2]
[339952654,1728204642864,-737.89,0.00013698,2]
[339952655,1728204642873,-500.0,0.00013698,2]
[339952656,1728204642882,-500.0,0.00013698,2]
[339952657,1728204642892,-151.0,0.00013698,2]
[339952658,1728204642902,-500.0,0.00013698,2]
[339952659,1728204642912,-500.0,0.00013698,2]
[339952660,1728204642921,-500.0,0.00013698,2]
[339952661,1728204642931,-500.0,0.00013698,2]
[339952662,1728204642942,-500.0,0.00013698,2]
[339952663,1728204642952,-500.0,0.00013698,2]
[339952664,1728204642963,-500.0,0.00013698,2]
[339952665,1728204642972,-500.0,0.00013698,2]
[339952666,1728204642982,-500.0,0.00013698,2]
[339952667,1728204642993,-500.0,0.00013698,2]
[339952668,1728204643003,-500.0,0.00013698,2]
[339952669,1728204643013,-708.32,0.00013698,2]
[339952670,1728204643023,-500.0,0.00013698,2]
[339952671,1728204643033,-847.99,0.00013698,2]
[339952672,1728204643043,-570.14,0.00013698,2]
[339952673,1728204643053,-501.21,0.00013698,2]
[339952674,1728204643064,-500.0,0.00013698,2]
[339952675,1728204643074,-500.0,0.00013698,2]
[339952676,1728204643084,-723.9,0.00013698,2]
[339952677,1728204643094,-640.66,0.00013698,2]
[339952678,1728204643103,-500.0,0.00013698,2]
[339952679,1728204643113,-500.0,0.00013698,2]
[339952681,1728204643122,-500.0,0.00013698,2]
[339952682,1728204643132,-500.0,0.00013698,2]
[339952683,1728204643142,-500.0,0.00013698,2]
[339952684,1728204643151,-500.0,0.00013698,2]
[339952685,1728204643161,-500.0,0.00013698,2]
[339952686,1728204643170,-500.0,0.00013698,2]
[339952687,1728204643180,-500.0,0.00013698,2]
[339952688,1728204643190,-500.0,0.00013698,2]
[339952689,1728204643199,-510.67,0.00013698,2]
[339952690,1728204643210,-507.89642515,0.00013698,2]
[339952691,1728204643220,-500.0,0.00013698,2]
[339952704,1728204643231,-846.43,0.00013698,2]
[339952706,1728204643391,-500.0,0.00013698,2]
[339952707,1728204643402,-500.0,0.00013698,2]
[339952708,1728204643413,-500.0,0.00013698,2]
[339952710,1728204643423,-500.0,0.00013698,2]
[339952713,1728204643434,-500.0,0.00013698,2]
[339952715,1728204643446,-1306.85,0.00013698,2]
[339952717,1728204643458,-500.0,0.00013698,2]
[339952719,1728204643469,-1149.32,0.00013698,2]
[339952721,1728204643481,-465.00705441,0.00013698,2]
[339952723,1728204643490,-500.0,0.00013698,2]
[339952725,1728204643500,-500.0,0.00013698,2]
[339952727,1728204643511,-163.19054631,0.00013698,2]
[339952728,1728204643521,-699.55,0.00013698,2]
[339952729,1728204643530,-1338.09,0.00013698,2]
[339952731,1728204643540,-500.0,0.00013698,2]
[339952732,1728204643550,-763.49,0.00013698,2]
[339952733,1728204643560,-793.92,0.00013698,2]
[339952734,1728204643571,-500.0,0.00013698,2]
[339952735,1728204643581,-607.52,0.00013698,2]
[339952737,1728204643591,-500.0,0.00013698,2]
[339952738,1728204643600,-500.0,0.00013698,2]
[339952739,1728204643611,-500.0,0.00013698,2]
[339952740,1728204643622,-1820.7,0.00013698,2]
[339952741,1728204643634,-603.62,0.00013698,2]
[339952742,1728204643646,-500.0,0.00013698,2]
[339952744,1728204643657,-622.46,0.00013698,2]
[339952745,1728204643668,-500.0,0.00013698,2]
[339952746,1728204643677,-500.0,0.00013698,2]
[339952747,1728204643687,-500.0,0.00013698,2]
[339952748,1728204643696,-500.0,0.00013698,2]
[339952750,1728204643707,-1063.27,0.00013698,2]
[339952752,1728204643716,-500.0,0.00013698,2]
[339952753,1728204643726,-1677.44,0.00013698,2]
[339952754,1728204643736,-500.0,0.00013698,2]
[339952755,1728204643745,-500.0,0.00013698,2]
[339952756,1728204643755,-500.0,0.00013698,2]
[339952757,1728204643765,-541.31,0.00013698,2]
[339952758,1728204643776,-500.0,0.00013698,2]
[339952759,1728204643785,-500.0,0.00013698,2]
[339952760,1728204643796,-500.0,0.00013698,2]
[339952761,1728204643806,-500.0,0.00013698,2]
[339952762,1728204643816,-500.0,0.00013698,2]
[339952763,1728204643827,-500.0,0.00013698,2]
[339952764,1728204643838,-500.0,0.00013698,2]
[339952765,1728204643849,-500.0,0.00013698,2]
[339952766,1728204643861,-604.58,0.00013698,2]
[339952767,1728204643873,-500.0,0.00013698,2]
[339952768,1728204643885,-500.44477835,0.00013698,2]
[339952769,1728204643895,-500.0,0.00013698,2]
[339952770,1728204643905,-500.0,0.00013698,2]
[339952771,1728204643915,-500.0,0.00013698,2]
[339952772,1728204643924,-500.0,0.00013698,2]
[339952773,1728204643933,-510.99805603,0.00013698,2]
[339952774,1728204643943,-746.41,0.00013698,2]
[339952775,1728204643952,-587.97,0.00013698,2]
[339952776,1728204643963,-500.0,0.00013698,2]
[339952777,1728204643973,-500.0,0.00013698,2]
[339952778,1728204643983,-500.0,0.00013698,2]
[339952779,1728204643992,-500.0,0.00013698,2]
[339952780,1728204644003,-673.42,0.00013698,2]
[339952781,1728204644012,-500.0,0.00013698,2]
[339952782,1728204644022,-500.0,0.00013698,2]
[339952783,1728204644031,-500.0,0.00013698,2]
[339952784,1728204644041,-500.0,0.00013698,2]
[339952785,1728204644051,-469.11,0.00013698,2]
[339952786,1728204644061,-500.0,0.00013698,2]
[339952787,1728204644071,-500.0,0.00013698,2]
[339952788,1728204644081,-500.0,0.00013698,2]
[339952789,1728204644090,-500.0,0.00013698,2]
[339952790,1728204644100,-620.6,0.00013698,2]
[339952791,1728204644108,-500.0,0.00013698,2]
[339952792,1728204644117,-500.0,0.00013698,2]
[339952793,1728204644127,-636.46,0.00013698,2]
[339952794,1728204644137,-791.67,0.00013698,2]
[339952795,1728204644146,-514.63771818,0.00013698,2]
[339952796,1728204644156,-618.34,0.00013698,2]
[339952797,1728204644166,-1057.03,0.00013698,2]
[339952798,1728204644176,-500.0,0.00013698,2]
[339952799,1728204644186,-500.0,0.00013698,2]
[339952800,1728204644196,-438.23989206,0.00013698,2]
[339952801,1728204644206,-470.45411404,0.00013698,2]
[339952802,1728204644216,-617.64,0.00013698,2]
[339952803,1728204644225,-500.0,0.00013698,2]
[339952804,1728204644235,-500.0,0.00013698,2]
[339952805,1728204644245,-680.61,0.00013698,2]
[339952806,1728204644254,-556.76,0.00013698,2]
[339952807,1728204644265,-500.0,0.00013698,2]
[339952808,1728204644277,-500.0,0.00013698,2]
[339952809,1728204644286,-1041.1,0.00013698,2]
[339952810,1728204644296,-500.0,0.00013698,2]
[339952811,1728204644306,-500.0,0.00013698,2]
[339952812,1728204644315,-500.0,0.00013698,2]
[339952813,1728204644325,-5580.93,0.00013698,2]
[339952814,1728204644334,-500.0,0.00013698,2]
[339952815,1728204644343,-500.0,0.00013698,2]
[339952816,1728204644353,-500.0,0.00013698,2]
[339952817,1728204644363,-500.0,0.00013698,2]
[339952818,1728204644372,-500.0,0.00013698,2]
[339952819,1728204644382,-500.0,0.00013698,2]
[339952820,1728204644392,-500.0,0.00013698,2]
[339952821,1728204644402,-500.0,0.00013698,2]
[339952822,1728204644412,-500.0,0.00013698,2]
[339952823,1728204644421,-500.0,0.00013698,2]
[339952824,1728204644431,-500.0,0.00013698,2]
[339952825,1728204644440,-500.0,0.00013698,2]
[339952826,1728204644449,-500.0,0.00013698,2]
[339952827,1728204644459,-500.0,0.00013698,2]
[339952828,1728204644469,-500.0,0.00013698,2]
[339952829,1728204644479,-500.0,0.00013698,2]
[339952830,1728204644488,-500.0,0.00013698,2]
[339952831,1728204644498,-500.0,0.00013698,2]
[339952832,1728204644507,-401.07452287,0.00013698,2]
[339952833,1728204644518,-500.0,0.00013698,2]
[339952834,1728204644527,-500.0,0.00013698,2]
[339952835,1728204644537,-731.04,0.00013698,2]
[339952836,1728204644548,-500.0,0.00013698,2]
[339952837,1728204644558,-500.0,0.00013698,2]
[339952838,1728204644567,-500.0,0.00013698,2]
[339952839,1728204644577,-500.0,0.00013698,2]
[339952840,1728204644587,-500.0,0.00013698,2]
[339952841,1728204644596,-500.0,0.00013698,2]
[339952842,1728204644607,-500.0,0.00013698,2]
[339952843,1728204644617,-500.0,0.00013698,2]
[339952844,1728204644627,-541.72,0.00013698,2]
[339952845,1728204644637,-500.0,0.00013698,2]
[339952846,1728204644647,-500.0,0.00013698,2]
[339952847,1728204644657,-500.0,0.00013698,2]
[339952848,1728204644667,-500.0,0.00013698,2]
[339952849,1728204644676,-500.0,0.00013698,2]
[339952850,1728204644686,-503.93,0.00013698,2]
[339952851,1728204644695,-500.0,0.00013698,2]
[339952852,1728204644705,-1220.28,0.00013698,2]
[339952853,1728204644714,-500.0,0.00013698,2]
[339952854,1728204644723,-500.0,0.00013698,2]
[339952855,1728204644733,-500.0,0.00013698,2]
[339952856,1728204644742,-300.61533453,0.00013698,2]
[339952857,1728204644752,-500.3090962,0.00013698,2]
[339952858,1728204644762,-924.832578,0.00013698,2]
[339952859,1728204644771,-924.832578,0.00013698,2]
[339952860,1728204644782,-500.0,0.00013698,2]
[339952861,1728204644792,-924.832578,0.00013698,2]
[339952862,1728204644804,-500.0,0.00013698,2]
[339952863,1728204644814,-924.832578,0.00013698,2]
[339952864,1728204644823,-500.0,0.00013698,2]
[339952865,1728204644833,-500.0,0.00013698,2]
[339952866,1728204644843,-496.87802429,0.00013698,2]
[339952867,1728204644854,-500.0,0.00013698,2]
[339952868,1728204644864,-549.38,0.00013698,2]
[339952869,1728204644873,-533.37,0.00013698,2]
[339952870,1728204644884,-500.0,0.00013698,2]
[339952871,1728204644894,-500.0,0.00013698,2]
[339952872,1728204644905,-500.0,0.00013698,2]
[339952873,1728204644915,-500.0,0.00013698,2]
[339952874,1728204644926,-500.0,0.00013698,2]
[339952875,1728204644937,-24170.75,0.00013698,2]
[339952876,1728204644948,-500.0,0.00013698,2]
[339952877,1728204644958,-500.0,0.00013698,2]
[339952878,1728204644971,-500.0,0.00013698,2]
[339952879,1728204644982,-500.0,0.00013698,2]
[339952880,1728204644994,-1423.03,0.00013698,2]
[339952881,1728204645005,-500.0,0.00013698,2]
[339952882,1728204645014,-500.0,0.00013698,2]
[339952883,1728204645025,-3968.08,0.00013698,2]
[339952884,1728204645035,-224.052863,0.00013698,2]
[339952885,1728204645045,-224.052863,0.00013698,2]
[339952886,1728204645055,-500.0,0.00013698,2]
[339952887,1728204645065,-500.0,0.00013698,2]
[339952888,1728204645075,-657.97,0.00013698,2]
[339952889,1728204645085,-224.052863,0.00013698,2]
[339952890,1728204645095,-224.052863,0.00013698,2]
[339952891,1728204645105,-1891.284275,0.00013698,2]
[339952892,1728204645115,-500.0,0.00013698,2]
[339952893,1728204645125,-1891.284275,0.00013698,2]
[339952894,1728204645135,-500.0,0.00013698,2]
[339952895,1728204645145,-500.0,0.00013698,2]
[339952896,1728204645154,-1024.82,0.00013698,2]
[339952897,1728204645164,-1891.284275,0.00013698,2]
[339952898,1728204645174,-500.0,0.00013698,2]
[339952899,1728204645184,-1891.284275,0.00013698,2]
[339952900,1728204645193,-1050.06,0.00013698,2]
[339952901,1728204645204,-1332.48,0.00013698,2]
[339952902,1728204645214,-500.0,0.00013698,2]
[339952903,1728204645224,-500.0,0.00013698,2]
[339952904,1728204645234,-500.0,0.00013698,2]
[339952905,1728204645244,-500.0,0.00013698,2]
[339952906,1728204645254,-500.0,0.00013698,2]
[339952907,1728204645265,-500.0,0.00013698,2]
[339952908,1728204645278,-500.0,0.00013698,2]
[339952909,1728204645287,-508.73367484,0.00013698,2]
[339952910,1728204645299,-500.0,0.00013698,2]
[339952911,1728204645311,-500.0,0.00013698,2]
[339952912,1728204645321,-500.0,0.00013698,2]
[339952913,1728204645332,-500.0,0.00013698,2]
[339952914,1728204645345,-151.0,0.00013698,2]
[339952915,1728204645356,-500.0,0.00013698,2]
[339952916,1728204645365,-151.0,0.00013698,2]
[339952917,1728204645376,-500.0,0.00013698,2]
[339952918,1728204645386,-500.0,0.00013698,2]
[339952919,1728204645396,-500.0,0.00013698,2]
[339952920,1728204645406,-500.0,0.00013698,2]
[339952921,1728204645416,-500.0,0.00013698,2]
[339952922,1728204645427,-500.84742907,0.00013698,2]
[339952923,1728204645437,-151.0,0.00013698,2]
[339952924,1728204645448,-151.0,0.00013698,2]
[339952925,1728204645459,-500.0,0.00013698,2]
[339952926,1728204645469,-538.347548,0.00013698,2]
[339952927,1728204645479,-500.0,0.00013698,2]
[339952928,1728204645490,-398.4127089,0.00013698,2]
[339952929,1728204645500,-500.0,0.00013698,2]
[339952930,1728204645510,-500.0,0.00013698,2]
[339952931,1728204645521,-500.0,0.00013698,2]
[339952932,1728204645531,-500.0,0.00013698,2]
[339952933,1728204645541,-151.0,0.00013698,2]
[339952934,1728204645551,-500.0,0.00013698,2]
[339952935,1728204645561,-275.983663,0.00013698,2]
[339952936,1728204645571,-500.0,0.00013698,2]
[339952937,1728204645581,-151.0,0.00013698,2]
[339952938,1728204645592,-151.0,0.00013698,2]
[339952939,1728204645602,-500.86266898,0.00013698,2]
[339952940,1728204645613,-500.0,0.00013698,2]
[339952941,1728204645624,-151.0,0.00013698,2]
[339952942,1728204645634,-500.0,0.00013698,2]
[339952943,1728204645645,-153.824722,0.00013698,2]
[339952944,1728204645655,-502.11,0.00013698,2]
[339952945,1728204645665,-500.81986783,0.00013698,2]
[339952946,1728204645675,-500.0,0.00013698,2]
[339952947,1728204645685,-500.0,0.00013698,2]
[339952948,1728204645695,-500.0,0.00013698,2]
[339952949,1728204645705,-500.0,0.00013698,2]
[339952950,1728204645715,-862.21,0.00013698,2]
[339952951,1728204645725,-500.0,0.00013698,2]
[339952952,1728204645735,-500.0,0.00013698,2]
[339952953,1728204645746,-500.0,0.00013698,2]
[339952954,1728204645756,-593.51,0.00013698,2]
[339952955,1728204645767,-541.33,0.00013698,2]
[339952956,1728204645777,-621.23562426,0.00013698,2]
[339952957,1728204645787,-702.5,0.00013698,2]
[339952958,1728204645799,-500.0,0.00013698,2]
[339952959,1728204645808,-500.0,0.00013698,2]
[339952960,1728204645819,-500.0,0.00013698,2]
[339952961,1728204645829,-500.0,0.00013698,2]
[339952962,1728204645840,-500.0,0.00013698,2]
[339952963,1728204645852,-500.0,0.00013698,2]
[339952964,1728204645864,-1141.35,0.00013698,2]
[339952965,1728204645876,-500.0,0.00013698,2]
[339952966,1728204645928,-628.01,0.00013698,2]
[339952967,1728204645940,-500.0,0.00013698,2]
[339952968,1728204645952,-151.0,0.00013698,2]
[339952969,1728204645964,-500.0,0.00013698,2]
[339952970,1728204645974,-151.0,0.00013698,2]
[339952971,1728204645984,-500.0,0.00013698,2]
[339952972,1728204645994,-500.0,0.00013698,2]
[339952973,1728204646003,-630.18,0.00013698,2]
[339952974,1728204646013,-500.0,0.00013698,2]
[339952975,1728204646023,-500.0,0.00013698,2]
[339952976,1728204646033,-1930.83,0.00013698,2]
[339952977,1728204646042,-547.21,0.00013698,2]
[339952978,1728204646060,-500.0,0.00013698,2]
[339952979,1728204646071,-500.0,0.00013698,2]
[339952980,1728204646081,-151.0,0.00013698,2]
[339952981,1728204646092,-500.0,0.00013698,2]
[339952982,1728204646102,-816.22,0.00013698,2]
[339952983,1728204646113,-500.0,0.00013698,2]
[339952984,1728204646123,-500.0,0.00013698,2]
[339952985,1728204646133,-500.0,0.00013698,2]
[339952986,1728204646143,-500.0,0.00013698,2]
[339952987,1728204646153,-500.0,0.00013698,2]
[339952988,1728204646163,-151.0,0.00013698,2]
[339952989,1728204646174,-151.0,0.00013698,2]
[339952990,1728204646185,-500.0,0.00013698,2]
[339952991,1728204646196,-500.0,0.00013698,2]
[339952992,1728204646206,-500.0,0.00013698,2]
[339952993,1728204646218,-500.0,0.00013698,2]
[339952994,1728204646229,-878.52,0.00013698,2]
[339952995,1728204646240,-639.2,0.00013698,2]
[339952996,1728204646251,-500.0,0.00013698,2]
[339952997,1728204646263,-500.0,0.00013698,2]
[339952998,1728204646278,-500.0,0.00013698,2]
[339952999,1728204646288,-500.0,0.00013698,2]
[339953000,1728204646298,-500.0,0.00013698,2]
[339953001,1728204646308,-500.04608372,0.00013698,2]
[339953002,1728204646318,-151.0,0.00013698,2]
[339953003,1728204646328,-286.842624,0.00013698,2]
[339953004,1728204646338,-1077.27,0.00013698,2]
[339953005,1728204646348,-500.0,0.00013698,2]
[339953006,1728204646357,-501.11756909,0.00013698,2]
[339953007,1728204646367,-500.0,0.00013698,2]
[339953008,1728204646377,-507.17,0.00013698,2]
[339953009,1728204646386,-500.0,0.00013698,2]
[339953010,1728204646397,-521.42,0.00013698,2]
[339953012,1728204646407,-307.412101,0.00013698,2]
[339953014,1728204646417,-307.412101,0.00013698,2]
[339953015,1728204646428,-500.0,0.00013698,2]
[339953016,1728204646440,-576.45,0.00013698,2]
[339953017,1728204646451,-500.94681942,0.00013698,2]
[339953018,1728204646463,-307.412101,0.00013698,2]
[339953019,1728204646474,-307.412101,0.00013698,2]
[339953020,1728204646485,-500.0,0.00013698,2]
[339953021,1728204646495,-500.0,0.00013698,2]
[339953022,1728204646506,-500.0,0.00013698,2]
[339953023,1728204646517,-500.47023385,0.00013698,2]
[339953025,1728204646529,-501.49620792,0.00013698,2]
[339953027,1728204646539,-500.0,0.00013698,2]
[339953028,1728204646552,-500.0,0.00013698,2]
[339953029,1728204646569,-700.94,0.00013698,2]
[339953030,1728204646580,-623.96,0.00013698,2]
[339953031,1728204646590,-500.0,0.00013698,2]
[339953032,1728204646601,-500.0,0.00013698,2]
[339953033,1728204646610,-500.0,0.00013698,2]
[339953034,1728204646621,-500.0,0.00013698,2]
[339953035,1728204646632,-500.0,0.00013698,2]
[339953036,1728204646644,-500.0,0.00013698,2]
[339953037,1728204646655,-151.0,0.00013698,2]
[339953038,1728204646664,-513.54,0.00013698,2]
[339953039,1728204646674,-500.0,0.00013698,2]
[339953041,1728204646684,-500.0,0.00013698,2]
[339953043,1728204646694,-3209.59,0.00013698,2]
[339953044,1728204646705,-500.0,0.00013698,2]
[339953045,1728204646716,-500.0,0.00013698,2]
[339953046,1728204646726,-500.0,0.00013698,2]
[339953047,1728204646737,-500.0,0.00013698,2]
[339953049,1728204646747,-500.0,0.00013698,2]
[339953050,1728204646756,-500.0,0.00013698,2]
[339953051,1728204646766,-151.0,0.00013698,2]
[339953052,1728204646776,-500.0,0.00013698,2]
[339953053,1728204646785,-151.0,0.00013698,2]
[339953054,1728204646794,-500.0,0.00013698,2]
[339953055,1728204646805,-158.387943,0.00013698,2]
[339953056,1728204646815,-500.0,0.00013698,2]
[339953057,1728204646826,-2196.73,0.00013698,2]
[339953058,1728204646837,-500.0,0.00013698,2]
[339953059,1728204646851,-592.97,0.00013698,2]
[339953060,1728204646862,-500.0,0.00013698,2]
[339953061,1728204646873,-500.0,0.00013698,2]
[339953062,1728204646883,-500.70914842,0.00013698,2]
[339953063,1728204646894,-510.90620148,0.00013698,2]
[339953064,1728204646905,-500.42925112,0.00013698,2]
[339953065,1728204646915,-500.0,0.00013698,2]
[339953066,1728204646925,-500.0,0.00013698,2]
[339953067,1728204646937,-500.0,0.00013698,2]
[339953068,1728204646947,-500.0,0.00013698,2]
[339953069,1728204646958,-500.0,0.00013698,2]
[339953070,1728204646970,-1049.59,0.00013698,2]
[339953071,1728204646980,-500.0,0.00013698,2]
[339953072,1728204646993,-500.0,0.00013698,2]
[339953073,1728204647005,-1092.4,0.00013698,2]
[339953074,1728204647015,-157.36587974,0.00013698,2]
[339953075,1728204647028,-673.07,0.00013698,2]
[339953076,1728204647037,-814.64,0.00013698,2]
[339953077,1728204647048,-724.91,0.00013698,2]
[339953078,1728204647059,-1453.01,0.00013698,2]
[339953079,1728204647070,-500.0,0.00013698,2]
[339953080,1728204647081,-151.0,0.00013698,2]
[339953081,1728204647092,-151.0,0.00013698,2]
[339953082,1728204647101,-1207.98993629,0.00013698,2]
[339953083,1728204648100,-801.32676502,0.00013697,2]
[339953084,1728204660524,1398.67626144,0.00010209,2]
[339953085,1728204696757,1000.0,9.79e-05,2]
[339953159,1728205831909,-250.0,0.00010958,2]
[339953160,1728205831923,-300.0,0.00010958,2]
[339953161,1728205831932,-414.49,0.00010959,2]
[339953162,1728205831942,-345.41,0.00010959,2]
[339953163,1728205831952,-287.84,0.00010959,2]
[339953164,1728205831961,-564.8183246,0.00010985,2]
[339953165,1728205831972,-23350.0755985,0.00011069,2]